bitfinex/quotes_SOLUSD_20260223
["timestamp","ask_amount","ask_price","bid_price","bid_amount"]
[1771870438049,1.13910081,78.447,78.411,1.07274819]
[1771870438547,1.13910081,78.455,78.43,12.26710918]
[1771870438755,1.13910081,78.455,78.431,1.07274819]
[1771870439051,1.13910081,78.468,78.431,1.07274819]
[1771870439266,1.13910081,78.468,78.415,5.36086188]
[1771870439267,1.13910081,78.468,78.441,1.07274819]
[1771870440348,12.74421094,78.467,78.441,1.07274819]
[1771870440549,1.13910081,78.478,78.45,5.49906433]
[1771870440743,1.13910081,78.469,78.442,12.7482726]
[1771870440945,1.13910081,78.469,78.434,1.07274819]
[1771870441351,1.13910081,78.469,78.441,1.07274819]
[1771870442556,1.13910081,78.479,78.443,1.07274819]
[1771870444459,1.13910081,78.478,78.445,1.07274819]
[1771870444758,12.27593267,78.47,78.445,1.07274819]
[1771870444953,1.13910081,78.469,78.445,1.07274819]
[1771870445254,1.13910081,78.469,78.435,1.07274819]
[1771870445455,1.13910081,78.476,78.441,1.07274819]
[1771870446558,1.13910081,78.494,78.461,1.07274819]
[1771870446859,50.9249712,78.547,78.471,1.07274819]
[1771870446860,1.13910081,78.509,78.471,1.07274819]
[1771870447257,1.13910081,78.509,78.481,1.07274819]
[1771870447950,1.13910081,78.489,78.459,1.07274819]
[1771870448143,1.13910081,78.489,78.451,1.07274819]
[1771870448958,44.58042555,78.51,78.453,1.07274819]
[1771870448959,1.13910081,78.509,78.453,1.07274819]
[1771870449161,1.13910081,78.509,78.47,12.27593267]
[1771870449460,1.13910081,78.509,78.471,1.07274819]
[1771870449859,1.13910081,78.508,78.471,1.07274819]
[1771870451350,1.13910081,78.506,78.473,1.07274819]
[1771870453755,1.13910081,78.506,78.475,1.07274819]
[1771870453970,1.13910081,78.504,78.475,1.07274819]
[1771870454365,1.13910081,78.499,78.475,1.07274819]
[1771870455256,3.69383402,78.536,78.481,1.07274819]
[1771870455257,1.13910081,78.511,78.481,1.07274819]
[1771870455663,31.83610235,78.528,78.491,1.07274819]
[1771870455664,13.87487176,78.519,78.491,1.07274819]
[1771870456966,1.13910081,78.518,78.491,1.07274819]
[1771870457568,12.27593267,78.5,78.475,0.2]
[1771870457766,1.13910081,78.499,78.476,12.74274937]
[1771870457964,1.13910081,78.499,78.476,44.5996228]
[1771870458368,1.13910081,78.499,78.485,0.2]
[1771870458671,1.11433843,78.507,78.485,1.25536755]
[1771870458875,31.83610235,78.528,78.493,1.05536755]
[1771870458876,1.11433843,78.519,78.493,1.05536755]
[1771870459173,1.11433843,78.519,78.495,0.2]
[1771870459347,12.73593316,78.518,78.495,0.2]
[1771870459750,1.11433843,78.517,78.495,0.2]
[1771870460753,12.73593316,78.518,78.495,0.2]
[1771870460754,1.05208313,78.509,78.495,0.2]
[1771870460955,1.05208313,78.508,78.476,12.74274937]
[1771870461172,1.05208313,78.5,78.476,12.74274937]
[1771870461769,1.05208313,78.5,78.477,1.14992994]
[1771870462477,1.05208313,78.5,78.478,12.74242462]
[1771870463583,1.05208313,78.499,78.478,12.74242462]
[1771870465578,1.05208313,78.499,78.487,0.2]
[1771870467088,1.05208313,78.497,78.475,0.2]
[1771870467276,1.05208313,78.489,78.464,12.74463085]
[1771870468079,1.05208313,78.489,78.465,1.14992994]
[1771870470194,1.05208313,78.489,78.466,12.74437335]
[1771870471271,1.05208313,78.489,78.466,13.89430329]
[1771870471691,1.25208313,78.489,78.466,13.89430329]
[1771870472190,1.05208313,78.479,78.451,13.89674005]
[1771870472495,1.05208313,78.479,78.451,1.14992994]
[1771870472672,1.25208313,78.479,78.451,1.14992994]
[1771870472998,0.2,78.479,78.461,1.14992994]
[1771870473200,0.2,78.489,78.462,1.14992994]
[1771870473576,0.2,78.489,78.463,1.14992994]
[1771870473776,31.84523341,78.505,78.45,44.61431008]
[1771870473777,38.33,78.554,78.48,10.99240476]
[1771870474097,1.05208313,78.584,78.537,3.69383402]
[1771870474409,12.72539862,78.583,78.554,1.14992994]
[1771870474570,1.05208313,78.579,78.544,1.14992994]
[1771870474772,1.05208313,78.569,78.538,12.7326899]
[1771870475180,1.05208313,78.577,78.541,1.14992994]
[1771870476786,1.05208313,78.577,78.542,12.73204145]
[1771870476974,1.05208313,78.577,78.543,1.14992994]
[1771870478210,1.05208313,78.559,78.527,1.14992994]
[1771870479085,1.05208313,78.559,78.527,12.73447349]
[1771870479272,1.05208313,78.557,78.527,12.73447349]
[1771870479991,1.05208313,78.557,78.528,1.14992994]
[1771870480689,13.29445893,78.55,78.519,13.88567548]
[1771870480999,1.05208313,78.549,78.512,1.14992994]
[1771870481181,1.05208313,78.547,78.513,12.73674423]
[1771870481493,1.05208313,78.547,78.514,1.14992994]
[1771870481694,0.80756588,78.547,78.514,1.14992994]
[1771870482479,12.2423758,78.55,78.514,1.14992994]
[1771870482680,12.73090682,78.549,78.514,1.14992994]
[1771870482880,12.2423758,78.55,78.514,1.14992994]
[1771870483082,12.2423758,78.55,78.513,44.57860481]
[1771870483083,12.2423758,78.56,78.521,1.14992994]
[1771870483304,12.72953698,78.558,78.523,1.14992994]
[1771870483778,12.2423758,78.55,78.523,1.14992994]
[1771870484408,12.2423758,78.55,78.524,12.73496001]
[1771870484912,12.2423758,78.55,78.524,13.88488995]
[1771870485611,1.05208313,78.557,78.525,1.14992994]
[1771870486808,12.72977239,78.556,78.525,1.14992994]
[1771870487014,1.05208313,78.555,78.525,1.14992994]
[1771870488119,1.05208313,78.555,78.433,57.38]
[1771870488120,1.12239013,78.539,78.513,1.12340413]
[1771870489698,1.12239013,78.546,78.513,1.12340413]
[1771870490326,44.55533772,78.554,78.513,1.12340413]
[1771870490327,12.2423758,78.54,78.513,1.12340413]
[1771870490611,1.12239013,78.544,78.514,1.12340413]
[1771870493214,12.2423758,78.54,78.515,13.85982392]
[1771870493409,12.2423758,78.54,78.516,1.12340413]
[1771870494221,1.12239013,78.544,78.516,1.12340413]
[1771870494530,1.12239013,78.542,78.516,1.12340413]
[1771870495928,1.12239013,78.539,78.505,1.12340413]
[1771870496107,1.12239013,78.539,78.5,12.2423758]
[1771870496108,1.12239013,78.529,78.498,1.12340413]
[1771870496309,12.2423758,78.52,78.498,1.12340413]
[1771870496605,1.12239013,78.519,78.498,1.12340413]
[1771870496807,1.12239013,78.519,78.494,12.73982724]
[1771870497015,1.12239013,78.519,78.493,12.73996802]
[1771870497821,1.12239013,78.519,78.493,13.86337215]
[1771870498022,1.12239013,78.519,78.494,1.12340413]
[1771870498225,1.12239013,78.519,78.495,12.73966494]
[1771870499128,1.12239013,78.509,78.451,1.12340413]
[1771870499426,12.2423758,78.48,78.451,1.12340413]
[1771870499635,1.12239013,78.489,78.455,1.12340413]
[1771870499813,12.2423758,78.48,78.455,1.12340413]
[1771870500212,12.2423758,78.48,78.457,1.12340413]
[1771870500735,1.12239013,78.489,78.457,1.12340413]
[1771870501034,13.86140591,78.499,78.461,1.12340413]
[1771870501537,1.12239013,78.503,78.471,1.12340413]
[1771870501741,1.12239013,78.499,78.463,1.12340413]
[1771870501945,1.12239013,78.489,78.457,1.12340413]
[1771870503636,12.2423758,78.47,78.45,1.12340413]
[1771870503832,13.36476593,78.48,78.45,1.12340413]
[1771870504021,1.12239013,78.479,78.45,1.12340413]
[1771870504221,1.12239013,78.469,78.443,1.12340413]
[1771870504620,12.74080114,78.488,78.451,1.12340413]
[1771870504930,13.86265472,78.492,78.461,1.12340413]
[1771870505434,12.2423758,78.49,78.461,1.12340413]
[1771870505637,50.93299081,78.535,78.471,1.12340413]
[1771870505638,1.12239013,78.503,78.471,1.12340413]
[1771870505843,1.12239013,78.499,78.471,1.12340413]
[1771870506930,12.2423758,78.49,78.463,1.12340413]
[1771870507321,1.12239013,78.493,78.463,1.12340413]
[1771870509244,1.12239013,78.493,78.465,1.12340413]
[1771870510844,1.12239013,78.489,78.458,12.74557357]
[1771870511043,1.12239013,78.489,78.459,1.12340413]
[1771870511424,12.74080114,78.488,78.461,1.12340413]
[1771870512233,1.12239013,78.487,78.461,1.12340413]
[1771870512551,1.12239013,78.479,78.451,1.12340413]
[1771870513362,1.12239013,78.469,78.439,1.12340413]
[1771870513528,12.2423758,78.49,78.451,1.12340413]
[1771870513729,1.12239013,78.489,78.451,1.12340413]
[1771870514060,12.2423758,78.48,78.451,1.12340413]
[1771870514362,1.12239013,78.459,78.441,5.36086188]
[1771870514528,12.2423758,78.45,78.43,12.95017751]
[1771870514728,12.2423758,78.45,78.431,1.12340413]
[1771870515138,1.12239013,78.449,78.43,0.2]
[1771870515355,1.12239013,78.467,78.432,1.12340413]
[1771870515537,12.2423758,78.47,78.434,1.12340413]
[1771870515538,13.86676348,78.466,78.434,1.12340413]
[1771870515730,12.74437335,78.466,78.434,1.12340413]
[1771870516056,12.2423758,78.47,78.441,1.12340413]
[1771870516231,1.12239013,78.469,78.441,1.12340413]
[1771870516832,12.2423758,78.47,78.441,1.12340413]
[1771870517545,12.74388612,78.469,78.441,1.12340413]
[1771870517749,12.74388612,78.469,78.443,1.11164507]
[1771870517958,12.74332995,78.473,78.443,1.11164507]
[1771870518838,12.74332995,78.473,78.442,12.7482726]
[1771870518839,1.07454928,78.495,78.461,1.11164507]
[1771870519042,12.2423758,78.49,78.45,12.2423758]
[1771870519250,1.07454928,78.479,78.444,1.11164507]
[1771870519738,1.07454928,78.477,78.446,1.11164507]
[1771870522332,1.06361561,78.475,78.448,1.10606736]
[1771870522540,12.73463566,78.526,78.461,5.64518502]
[1771870522760,1.06361561,78.519,78.481,1.10606736]
[1771870523561,1.06361561,78.519,78.461,0.28432314]
[1771870523562,1.06361561,78.519,78.49,12.2423758]
[1771870523763,1.06361561,78.519,78.487,1.10606736]
[1771870523970,1.06361561,78.519,78.491,1.10606736]
[1771870524137,1.06361561,78.527,78.5,13.34844316]
[1771870524334,1.06361561,78.527,78.501,12.73869122]
[1771870526160,1.06361561,78.527,78.502,1.10606736]
[1771870526363,13.7969206,78.535,78.51,12.2423758]
[1771870526538,13.7969206,78.535,78.511,1.10606736]
[1771870527935,12.73330499,78.535,78.511,1.10606736]
[1771870528136,1.06361561,78.534,78.504,1.10606736]
[1771870528457,1.06361561,78.532,78.504,1.10606736]
[1771870530066,1.06361561,78.532,78.504,13.84418911]
[1771870530356,1.06361561,78.532,78.51,13.34844316]
[1771870530569,1.06361561,78.532,78.511,12.73706869]
[1771870532059,1.06361561,78.532,78.497,1.10606736]
[1771870532362,31.83184114,78.538,78.489,31.85149769]
[1771870532363,1.06361561,78.529,78.5,12.2423758]
[1771870532564,1.06361561,78.527,78.501,12.73869122]
[1771870532863,1.06361561,78.527,78.502,1.10606736]
[1771870534248,12.73372962,78.532,78.51,13.36221233]
[1771870534648,12.25614497,78.54,78.503,1.10606736]
[1771870534649,1.06361561,78.535,78.503,1.10606736]
[1771870535566,1.06361561,78.535,78.51,12.25614497]
[1771870535739,1.06361561,78.535,78.51,1.10606736]
[1771870536178,12.73232942,78.541,78.521,1.10606736]
[1771870536660,31.82879142,78.546,78.521,1.10606736]
[1771870536864,1.06361561,78.545,78.521,1.10606736]
[1771870537048,1.06361561,78.545,78.525,0.31552577]
[1771870539075,1.06361561,78.539,78.513,1.10606736]
[1771870540154,1.06361561,78.539,78.51,12.25614497]
[1771870540349,1.06361561,78.529,78.502,12.73844659]
[1771870540561,1.06361561,78.529,78.503,1.10606736]
[1771870540872,1.06361561,78.519,78.49,12.25614497]
[1771870541062,12.25614497,78.52,78.487,1.10606736]
[1771870541063,1.06361561,78.517,78.488,12.74080114]
[1771870541266,1.06361561,78.509,78.48,1.10606736]
[1771870541658,1.06361561,78.499,78.473,1.10606736]
[1771870541971,12.25614497,78.49,78.465,13.85044995]
[1771870542161,12.25614497,78.49,78.466,1.10606736]
[1771870542162,13.31976058,78.49,78.466,1.10606736]
[1771870542475,1.06361561,78.498,78.466,1.10606736]
[1771870542780,1.06361561,78.489,78.458,1.10606736]
[1771870542955,12.25614497,78.48,78.458,1.10606736]
[1771870543279,12.25614497,78.48,78.459,12.74551039]
[1771870543770,12.25614497,78.48,78.43,3.89383402]
[1771870543771,1.06361561,78.469,78.444,1.10606736]
[1771870543956,12.74226226,78.479,78.451,1.10606736]
[1771870544151,13.80587787,78.479,78.451,1.10606736]
[1771870544573,31.85216445,78.488,78.451,1.10606736]
[1771870544574,1.06361561,78.488,78.451,1.10606736]
[1771870544782,50.92616284,78.546,78.481,1.10606736]
[1771870544783,1.06361561,78.519,78.481,1.10606736]
[1771870544977,12.73577095,78.519,78.491,1.10606736]
[1771870545673,13.7980891,78.527,78.5,12.25614497]
[1771870545972,12.73392093,78.531,78.501,1.10606736]
[1771870546179,12.73392093,78.531,78.51,12.25614497]
[1771870546354,12.25614497,78.53,78.501,1.10606736]
[1771870546676,12.73392093,78.531,78.501,1.10606736]
[1771870546875,12.25614497,78.53,78.501,1.10606736]
[1771870547076,13.31976058,78.53,78.501,1.10606736]
[1771870547461,13.79776477,78.529,78.501,1.10606736]
[1771870548172,13.86446259,78.529,78.501,1.10606736]
[1771870548479,13.86446259,78.529,78.502,12.73852895]
[1771870548977,13.86446259,78.529,78.501,1.10606736]
[1771870549164,1.13031343,78.528,78.501,1.10606736]
[1771870549367,1.13031343,78.528,78.502,12.73852895]
[1771870549674,1.13031343,78.526,78.501,1.10606736]
[1771870550462,1.13031343,78.526,78.502,1.0491619]
[1771870550662,12.73447349,78.527,78.502,1.0491619]
[1771870551083,1.13031343,78.526,78.502,1.0491619]
[1771870552362,1.13031343,78.524,78.494,1.0491619]
[1771870552676,12.25614497,78.52,78.494,1.0491619]
[1771870553065,1.13031343,78.519,78.494,1.0491619]
[1771870553279,12.25614497,78.51,78.486,1.0491619]
[1771870553464,1.13031343,78.518,78.488,1.0491619]
[1771870554390,12.25614497,78.51,78.488,1.0491619]
[1771870554789,1.13031343,78.516,78.488,1.0491619]
[1771870556266,12.73609536,78.517,78.491,1.0491619]
[1771870560492,1.13031343,78.517,78.493,1.0491619]
[1771870560795,1.13031343,78.519,78.493,1.0491619]
[1771870561089,12.73538984,78.522,78.479,12.74218644]
[1771870561090,1.13031343,78.509,78.479,12.74218644]
[1771870561295,1.13031343,78.509,78.431,102.2]
[1771870561296,1.13031343,78.499,78.461,1.0491619]
[1771870561596,12.25614497,78.5,78.446,1.0491619]
[1771870561597,12.25614497,78.47,78.446,1.0491619]
[1771870561775,3.69383402,78.509,78.434,31.87373242]
[1771870561776,1.13031343,78.488,78.451,1.0491619]
[1771870561967,12.25614497,78.48,78.451,1.0491619]
[1771870562597,12.74226226,78.479,78.453,1.0491619]
[1771870562891,1.13031343,78.478,78.453,1.0491619]
[1771870563097,12.25614497,78.47,78.442,1.0491619]
[1771870563276,12.25614497,78.47,78.441,12.74843512]
[1771870563277,12.25614497,78.46,78.432,1.0491619]
[1771870563474,1.13031343,78.474,78.432,1.0491619]
[1771870563688,12.25614497,78.47,78.441,1.0491619]
[1771870563883,1.13031343,78.478,78.441,1.0491619]
[1771870564187,12.25614497,78.47,78.441,1.0491619]
[1771870565573,1.13031343,78.459,78.431,1.0491619]
[1771870566175,12.25614497,78.45,78.431,1.0491619]
[1771870566572,12.25614497,78.45,78.43,0.2]
[1771870566573,1.13031343,78.449,78.43,0.2]
[1771870567704,12.25614497,78.44,78.42,0.2]
[1771870568097,13.3864584,78.44,78.42,0.2]
[1771870568503,12.25614497,78.43,78.42,0.2]
[1771870568698,1.13031343,78.437,78.42,0.2]
[1771870569706,12.25614497,78.43,78.41,0.2]
[1771870570207,12.25614497,78.43,78.41,1.2491619]
[1771870570400,1.13031343,78.456,78.421,1.0491619]
[1771870570791,12.25614497,78.45,78.421,1.0491619]
[1771870571203,1.13031343,78.456,78.421,1.0491619]
[1771870572013,1.13031343,78.449,78.423,1.0491619]
[1771870572216,12.25614497,78.44,78.423,1.0491619]
[1771870572415,1.13031343,78.449,78.423,1.0491619]
[1771870574216,12.25614497,78.44,78.423,1.0491619]
[1771870574404,1.13031343,78.429,78.41,0.2]
[1771870575012,12.25614497,78.43,78.41,0.2]
[1771870575718,12.25614497,78.43,78.411,1.0491619]
[1771870577412,31.86824393,78.448,78.413,1.0491619]
[1771870577599,12.25614497,78.42,78.41,0.2]
[1771870577807,1.13031343,78.429,78.41,0.2]
[1771870578516,12.25614497,78.43,78.41,0.2]
[1771870580213,12.75038569,78.429,78.41,0.2]
[1771870580719,12.25614497,78.44,78.412,1.13867259]
[1771870581016,32.97045546,78.448,78.412,1.13867259]
[1771870581222,1.10217051,78.447,78.412,1.13867259]
[1771870581820,12.25614497,78.44,78.412,1.13867259]
[1771870582404,12.25614497,78.44,78.413,12.75298738]
[1771870582609,12.74702827,78.45,78.421,1.13867259]
[1771870582811,1.10217051,78.449,78.421,1.13867259]
[1771870584403,12.25614497,78.48,78.441,1.13867259]
[1771870584622,155.04022413,78.524,78.451,1.13867259]
[1771870584623,1.10217051,78.489,78.451,1.13867259]
[1771870584804,1.10217051,78.479,78.451,1.13867259]
[1771870585508,12.25614497,78.46,78.429,1.13867259]
[1771870585707,159.25798517,78.489,78.421,1.13867259]
[1771870585708,12.25614497,78.44,78.421,1.13867259]
[1771870586226,12.25614497,78.45,78.421,1.13867259]
[1771870586610,3.69383402,78.488,78.431,1.13867259]
[1771870586611,12.74404852,78.468,78.431,1.13867259]
[1771870586803,44.60416984,78.468,78.431,1.13867259]
[1771870587008,12.25614497,78.46,78.431,1.13867259]
[1771870588107,12.25614497,78.45,78.431,1.13867259]
[1771870589921,12.25614497,78.45,78.42,12.25614497]
[1771870589922,12.25614497,78.45,78.415,1.13867259]
[1771870590127,12.25614497,78.43,78.415,1.13867259]
[1771870590419,1.10217051,78.429,78.41,0.2]
[1771870590725,1.10217051,78.429,78.4,0.2]
[1771870590726,12.25614497,78.42,78.4,0.2]
[1771870591403,12.25614497,78.41,78.4,0.2]
[1771870591610,1.10217051,78.419,78.4,0.2]
[1771870592319,12.25614497,78.43,78.401,13.89361194]
[1771870592527,12.74930092,78.436,78.401,13.89361194]
[1771870592722,25.00480116,78.44,78.41,12.25614497]
[1771870593107,25.00480116,78.44,78.401,45.78096031]
[1771870593312,1.10217051,78.439,78.401,45.78096031]
[1771870593514,12.25614497,78.43,78.401,45.78096031]
[1771870594203,12.75038569,78.429,78.402,1.13867259]
[1771870594419,12.25614497,78.43,78.402,1.13867259]
[1771870594624,12.25614497,78.43,78.4,0.2]
[1771870594625,12.25614497,78.42,78.4,0.2]
[1771870595214,1.10217051,78.419,78.4,0.2]
[1771870595520,1.10217051,78.409,78.39,0.2]
[1771870596420,12.29345192,78.4,78.38,0.2]
[1771870597109,12.75363797,78.409,78.381,1.13867259]
[1771870597426,12.75363797,78.409,78.38,0.2]
[1771870597427,12.29345192,78.4,78.38,0.2]
[1771870598212,12.29345192,78.4,78.381,12.75819395]
[1771870598706,12.29345192,78.42,78.382,1.13867259]
[1771870599110,12.29345192,78.41,78.382,1.13867259]
[1771870599316,1.10217051,78.409,78.382,1.13867259]
[1771870599833,12.29345192,78.42,78.382,1.13867259]
[1771870600032,13.39562243,78.42,78.382,1.13867259]
[1771870600534,12.29345192,78.41,78.384,1.13867259]
[1771870602638,1.10217051,78.419,78.386,1.13867259]
[1771870602818,1.10217051,78.427,78.391,1.13867259]
[1771870603326,12.29345192,78.42,78.391,1.13867259]
[1771870603529,1.10217051,78.427,78.391,1.13867259]
[1771870603725,12.74908525,78.437,78.401,1.13867259]
[1771870604113,12.29345192,78.43,78.401,1.13867259]
[1771870604728,1.10217051,78.438,78.403,1.13867259]
[1771870604927,12.29345192,78.43,78.403,1.13867259]
[1771870606032,12.29345192,78.42,78.403,1.13867259]
[1771870606241,12.29345192,78.42,78.398,12.75541637]
[1771870606530,12.29345192,78.41,78.393,1.13867259]
[1771870606732,12.29345192,78.41,78.382,1.13867259]
[1771870606933,25.04700869,78.41,78.382,1.13867259]
[1771870607444,12.29345192,78.41,78.382,1.13867259]
[1771870608137,13.40382104,78.43,78.391,1.04295405]
[1771870608438,1.11036912,78.428,78.391,1.04295405]
[1771870608621,12.29345192,78.42,78.391,1.04295405]
[1771870609020,12.74931795,78.436,78.401,1.04295405]
[1771870609223,12.29345192,78.41,78.344,1.15659419]
[1771870609427,14.29345192,78.39,78.36,1.35659419]
[1771870611439,12.75689191,78.389,78.36,1.35659419]
[1771870611938,12.29345192,78.37,78.36,0.2]
[1771870612349,12.29345192,78.38,78.36,0.2]
[1771870612522,12.29345192,78.37,78.36,0.2]
[1771870612727,12.29345192,78.38,78.36,0.2]
[1771870612933,12.29345192,78.38,78.36,1.35659419]
[1771870613241,12.75689191,78.389,78.36,1.35659419]
[1771870614225,17.27990306,78.42,78.36,1.35659419]
[1771870614226,1.15655867,78.428,78.38,12.29345192]
[1771870614423,1.15655867,78.428,78.39,12.29345192]
[1771870615045,1.15655867,78.428,78.4,12.29345192]
[1771870615345,1.15655867,78.428,78.39,12.29345192]
[1771870615540,1.15655867,78.426,78.391,12.75656644]
[1771870615734,1.15655867,78.426,78.39,12.29345192]
[1771870616043,1.15655867,78.426,78.4,12.29345192]
[1771870616744,1.15655867,78.437,78.42,12.29345192]
[1771870617229,1.15655867,78.459,78.43,12.29345192]
[1771870617438,1.15655867,78.459,78.42,12.29345192]
[1771870617634,1.15655867,78.457,78.42,12.29345192]
[1771870617948,1.15655867,78.457,78.42,25.04524809]
[1771870619625,1.15655867,78.455,78.42,12.29345192]
[1771870621153,1.15655867,78.449,78.41,12.29345192]
[1771870621734,1.15655867,78.447,78.411,12.75331267]
[1771870621935,1.15655867,78.447,78.42,12.29345192]
[1771870622254,63.71649407,78.473,78.411,44.63659435]
[1771870622255,12.74674353,78.452,78.43,12.29345192]
[1771870622466,50.96734478,78.482,78.43,12.29345192]
[1771870622467,57.48,78.55,78.43,12.29345192]
[1771870622758,57.48,78.55,78.411,44.63659435]
[1771870622759,57.48,78.55,78.471,5.64518502]
[1771870622760,12.29345192,78.54,78.471,5.64518502]
[1771870622932,1.15655867,78.518,78.5,12.29345192]
[1771870623134,63.21654439,78.55,78.45,12.29345192]
[1771870623135,1.15655867,78.508,78.47,12.29345192]
[1771870623934,1.15655867,78.506,78.47,12.29345192]
[1771870624134,1.15655867,78.506,78.471,12.74356131]
[1771870624351,1.15655867,78.506,78.48,12.29345192]
[1771870625727,1.15655867,78.499,78.48,12.29345192]
[1771870626038,1.15655867,78.508,78.48,12.29345192]
[1771870626828,1.15655867,78.508,78.469,0.02864084]
[1771870627035,1.15655867,78.508,78.48,12.29345192]
[1771870628062,1.15655867,78.508,78.48,25.0354878]
[1771870628852,12.73771765,78.507,78.48,25.0354878]
[1771870629059,1.15655867,78.506,78.48,25.0354878]
[1771870629863,1.15655867,78.506,78.495,3.79435474]
[1771870630358,12.73804216,78.505,78.495,3.79435474]
[1771870630562,0.1,78.51,78.495,3.79435474]
[1771870630752,0.1,78.51,78.5,12.29345192]
[1771870631065,1.25655867,78.51,78.495,3.79435474]
[1771870631265,1.25655867,78.51,78.496,12.73950264]
[1771870631565,0.1,78.52,78.5,12.29345192]
[1771870631757,1.15655867,78.528,78.51,12.29345192]
[1771870631962,1.18025578,78.539,78.51,12.29345192]
[1771870632652,1.18025578,78.537,78.52,12.29345192]
[1771870632857,1.18025578,78.559,78.53,12.29345192]
[1771870633068,1.18025578,78.557,78.53,12.29345192]
[1771870633277,1.18025578,78.549,78.511,12.73706869]
[1771870633569,1.18025578,78.549,78.52,12.29345192]
[1771870633938,1.18025578,78.549,78.53,12.29345192]
[1771870634366,12.7294483,78.558,78.53,12.29345192]
[1771870634666,1.18025578,78.576,78.551,12.73058267]
[1771870634846,6.6547848,78.589,78.551,12.73058267]
[1771870634847,6.6547848,78.589,78.57,12.29345192]
[1771870635037,12.72458818,78.589,78.57,12.29345192]
[1771870635452,12.72503766,78.586,78.56,12.29345192]
[1771870635661,1.18025578,78.579,78.55,12.29345192]
[1771870636658,13.90662609,78.577,78.55,12.29345192]
[1771870636858,1.18025578,78.576,78.55,12.29345192]
[1771870637566,1.18025578,78.576,78.551,12.73058267]
[1771870637892,1.18025578,78.576,78.54,12.29345192]
[1771870638042,1.18025578,78.569,78.54,12.29345192]
[1771870638243,1.18025578,78.569,78.541,12.73220356]
[1771870639764,1.18025578,78.567,78.54,12.29345192]
[1771870640768,1.18025578,78.567,78.55,12.29345192]
[1771870641264,1.18025578,78.567,78.54,12.29345192]
[1771870641465,1.18025578,78.567,78.532,12.7336439]
[1771870641466,1.28025578,78.58,78.55,12.29345192]
[1771870641852,1.18025578,78.578,78.536,0.04113619]
[1771870642171,1.18025578,78.578,78.54,12.29345192]
[1771870642481,1.18025578,78.578,78.55,12.29345192]
[1771870643774,1.18025578,78.569,78.532,12.73366271]
[1771870644157,1.18025578,78.569,78.53,12.29345192]
[1771870644669,44.54229608,78.577,78.52,12.29345192]
[1771870644670,12.29345192,78.55,78.52,12.29345192]
[1771870644976,1.18025578,78.549,78.52,12.29345192]
[1771870645971,1.18025578,78.539,78.5,12.29345192]
[1771870646470,1.18025578,78.529,78.5,12.29345192]
[1771870647278,1.18025578,78.529,78.49,12.29345192]
[1771870647775,1.18025578,78.529,78.483,12.74161283]
[1771870647776,1.18025578,78.519,78.483,12.74161283]
[1771870647961,1.18025578,78.519,78.49,12.29345192]
[1771870649782,1.18025578,78.517,78.49,12.29345192]
[1771870649961,1.18025578,78.517,78.48,12.29345192]
[1771870650283,1.18025578,78.509,78.48,12.29345192]
[1771870651378,44.57576606,78.518,78.481,0.07149261]
[1771870651379,1.18025578,78.518,78.481,0.07149261]
[1771870651580,50.9258271,78.546,78.481,0.07149261]
[1771870651581,1.18025578,78.537,78.51,12.29345192]
[1771870651778,1.18025578,78.537,78.52,12.29345192]
[1771870652463,1.18025578,78.569,78.53,12.29345192]
[1771870652861,1.18025578,78.559,78.53,12.29345192]
[1771870655073,12.29345192,78.56,78.53,12.29345192]
[1771870655074,1.18025578,78.557,78.53,12.29345192]
[1771870655270,1.18025578,78.557,78.521,0.0743398]
[1771870655473,1.18025578,78.557,78.53,12.29345192]
[1771870655672,12.29345192,78.55,78.496,31.84874619]
[1771870655862,1.18025578,78.529,78.501,0.08540529]
[1771870656068,1.18025578,78.539,78.501,0.08540529]
[1771870657387,1.18025578,78.537,78.501,0.08540529]
[1771870659969,1.18025578,78.535,78.501,0.08540529]
[1771870660587,0.28432314,78.547,78.5,24.99387514]
[1771870660588,31.8274702,78.549,78.52,12.25515472]
[1771870660884,31.8274702,78.549,78.521,0.09853711]
[1771870661063,1.18025578,78.55,78.521,0.09853711]
[1771870661264,1.18025578,78.557,78.53,12.25515472]
[1771870661681,1.18025578,78.557,78.521,0.09853711]
[1771870662476,1.18025578,78.549,78.516,12.736131]
[1771870662784,1.18025578,78.549,78.52,12.25515472]
[1771870664869,1.18025578,78.548,78.521,12.73544656]
[1771870665991,12.73123098,78.547,78.521,12.73544656]
[1771870666883,31.82443097,78.556,78.521,12.73544656]
[1771870666884,1.18025578,78.556,78.53,12.36608661]
[1771870667674,1.18025578,78.556,78.531,0.11332609]
[1771870667886,1.23300087,78.563,78.531,12.84715094]
[1771870668281,1.23300087,78.559,78.527,12.73435814]
[1771870668470,1.23300087,78.559,78.53,12.25515472]
[1771870669182,1.23300087,78.559,78.527,12.73435814]
[1771870669382,1.23300087,78.549,78.52,12.25515472]
[1771870669590,1.23300087,78.539,78.502,12.73852895]
[1771870670067,1.23300087,78.537,78.502,12.73852895]
[1771870670791,1.23300087,78.529,78.502,12.73852895]
[1771870672168,1.23300087,78.54,78.51,12.25515472]
[1771870672573,1.23300087,78.546,78.52,12.25515472]
[1771870673286,1.23300087,78.546,78.511,0.1293329]